fUSD/lending_fUSD_20250206
["ID","MTS","AMOUNT","RATE_DAILY","PERIOD"]
[351970938,1738865433936,-500.0,0.00016571,2]
[351970939,1738865433946,-500.0,0.00016571,2]
[351970940,1738865433956,-532.59,0.00016571,2]
[351970941,1738865433966,-500.0,0.00016571,2]
[351970942,1738865433976,-500.0,0.00016571,2]
[351970943,1738865433986,-500.0,0.00016571,2]
[351970944,1738865433996,-500.0,0.00016571,2]
[351970945,1738865434006,-503.37,0.00016571,2]
[351970946,1738865434016,-500.0,0.00016571,2]
[351970947,1738865434028,-584.43,0.00016571,2]
[351970948,1738865434038,-500.0,0.00016571,2]
[351970949,1738865434048,-556.11,0.00016571,2]
[351970950,1738865434058,-500.0,0.00016571,2]
[351970951,1738865434068,-538.68,0.00016571,2]
[351970952,1738865434078,-500.0,0.00016571,2]
[351970953,1738865434087,-566.18,0.00016571,2]
[351970954,1738865434097,-500.0,0.00016571,2]
[351970955,1738865434107,-742.39,0.00016571,2]
[351970956,1738865434118,-500.0,0.00016571,2]
[351970957,1738865434129,-500.0,0.00016571,2]
[351970958,1738865434139,-1747.98,0.00016571,2]
[351970959,1738865434149,-500.0,0.00016571,2]
[351970960,1738865434158,-678.77,0.00016571,2]
[351970961,1738865434168,-503.2,0.00016571,2]
[351970962,1738865434177,-500.0,0.00016571,2]
[351970963,1738865434187,-500.0,0.00016571,2]
[351970964,1738865434197,-500.0,0.00016571,2]
[351970965,1738865434207,-500.0,0.00016571,2]
[351970966,1738865434217,-1802.1,0.00016571,2]
[351970967,1738865434228,-172.301882,0.00016571,2]
[351970968,1738865434239,-652.86,0.00016571,2]
[351970969,1738865434250,-1584.16,0.00016571,2]
[351970970,1738865434260,-918.63,0.00016571,2]
[351970971,1738865434271,-500.0,0.00016571,2]
[351970972,1738865434281,-806.51,0.00016571,2]
[351970973,1738865434291,-900.5,0.00016571,2]
[351970974,1738865434301,-566.51,0.00016571,2]
[351970975,1738865434312,-723.71,0.00016571,2]
[351970976,1738865434326,-952.51,0.00016571,2]
[351970977,1738865434337,-500.0,0.00016571,2]
[351970978,1738865434347,-737.75,0.00016571,2]
[351970979,1738865434359,-500.0,0.00016571,2]
[351970980,1738865434369,-155.378491,0.00016571,2]
[351970981,1738865434381,-608.16,0.00016571,2]
[351970982,1738865434394,-500.0,0.00016571,2]
[351970983,1738865434405,-591.92,0.00016571,2]
[351970984,1738865434415,-500.0,0.00016571,2]
[351970985,1738865434425,-500.0,0.00016571,2]
[351970986,1738865434435,-512.95,0.00016571,2]
[351970987,1738865434449,-1555.25,0.00016571,2]
[351970988,1738865434459,-655.81,0.00016571,2]
[351970989,1738865434471,-777.99,0.00016571,2]
[351970990,1738865434481,-500.0,0.00016571,2]
[351970991,1738865434491,-500.0,0.00016571,2]
[351970992,1738865434502,-1044.87,0.00016571,2]
[351970993,1738865434513,-1172.07,0.00016571,2]
[351970994,1738865434527,-827.98,0.00016571,2]
[351970995,1738865434537,-957.11,0.00016571,2]
[351970996,1738865434546,-500.0,0.00016571,2]
[351970997,1738865434556,-628.12,0.00016571,2]
[351970998,1738865434565,-1218.45,0.00016571,2]
[351970999,1738865434575,-526.39,0.00016571,2]
[351971000,1738865434586,-902.4,0.00016571,2]
[351971001,1738865434596,-1156.47,0.00016571,2]
[351971002,1738865434606,-500.0,0.00016571,2]
[351971003,1738865434615,-829.0,0.00016571,2]
[351971004,1738865434625,-500.0,0.00016571,2]
[351971005,1738865434634,-500.0,0.00016571,2]
[351971006,1738865434644,-1070.13,0.00016571,2]
[351971007,1738865434653,-1510.92,0.00016571,2]
[351971008,1738865434663,-1350.72,0.00016571,2]
[351971009,1738865434672,-2095.83,0.00016571,2]
[351971010,1738865434682,-3958.39,0.00016571,2]
[351971011,1738865434693,-1571.59,0.00016571,2]
[351971012,1738865434703,-544.84,0.00016571,2]
[351971013,1738865434712,-2153.26,0.00016571,2]
[351971014,1738865434722,-896.03,0.00016571,2]
[351971015,1738865434731,-500.0,0.00016571,2]
[351971016,1738865434741,-500.0,0.00016571,2]
[351971017,1738865434751,-500.0,0.00016571,2]
[351971018,1738865434760,-841.83,0.00016571,2]
[351971019,1738865434772,-500.0,0.00016571,2]
[351971020,1738865434783,-1022.79,0.00016571,2]
[351971021,1738865434793,-860.29,0.00016571,2]
[351971022,1738865434803,-500.0,0.00016571,2]
[351971023,1738865434814,-500.0,0.00016571,2]
[351971024,1738865434824,-500.0,0.00016571,2]
[351971025,1738865434834,-991.88,0.00016571,2]
[351971026,1738865434844,-973.06,0.00016571,2]
[351971027,1738865434854,-359.40965907,0.00016572,2]
[351971028,1738865434863,-500.0,0.00016572,2]
[351971029,1738865434873,-535.16,0.00016572,2]
[351971030,1738865434883,-500.0,0.00016572,2]
[351971031,1738865434892,-500.0,0.00016572,2]
[351971032,1738865434902,-500.0,0.00016572,2]
[351971033,1738865434912,-500.0,0.00016572,2]
[351971034,1738865434922,-500.0,0.00016572,2]
[351971035,1738865434931,-500.0,0.00016572,2]
[351971036,1738865434940,-500.0,0.00016572,2]
[351971037,1738865434950,-500.0,0.00016572,2]
[351971038,1738865434959,-500.0,0.00016572,2]
[351971039,1738865434969,-500.0,0.00016572,2]
[351971040,1738865434978,-500.0,0.00016572,2]
[351971041,1738865434988,-504.32,0.00016572,2]
[351971042,1738865434998,-500.0,0.00016572,2]
[351971043,1738865435007,-500.0,0.00016572,2]
[351971044,1738865435016,-500.0,0.00016572,2]
[351971045,1738865435028,-500.0,0.00016572,2]
[351971046,1738865435038,-587.92,0.00016572,2]
[351971047,1738865435047,-500.0,0.00016572,2]
[351971048,1738865435057,-525.78,0.00016572,2]
[351971049,1738865435067,-500.0,0.00016572,2]
[351971050,1738865435077,-520.82,0.00016572,2]
[351971051,1738865435087,-500.0,0.00016572,2]
[351971052,1738865435097,-500.0,0.00016572,2]
[351971053,1738865435107,-500.0,0.00016572,2]
[351971054,1738865435117,-500.0,0.00016572,2]
[351971055,1738865435127,-883.6,0.00016572,2]
[351971056,1738865435136,-378.4571934,0.00016572,2]
[351971057,1738865435146,-500.0,0.00016572,2]
[351971058,1738865435155,-500.0,0.00016572,2]
[351971059,1738865435165,-500.0,0.00016572,2]
[351971060,1738865435175,-259.98014399,0.00016572,2]
[351971061,1738865435185,-500.0,0.00016572,2]
[351971062,1738865435195,-500.0,0.00016572,2]
[351971063,1738865435204,-500.0,0.00016572,2]
[351971064,1738865435214,-500.0,0.00016572,2]
[351971065,1738865435223,-500.0,0.00016572,2]
[351971066,1738865435233,-500.0,0.00016572,2]
[351971067,1738865435244,-500.0,0.00016572,2]
[351971068,1738865435254,-500.0,0.00016572,2]
[351971069,1738865435264,-500.0,0.00016572,2]
[351971070,1738865435279,-327.77385101,0.00016572,2]
[351971071,1738865435288,-500.0,0.00016572,2]
[351971072,1738865435298,-500.0,0.00016572,2]
[351971073,1738865435307,-500.0,0.00016572,2]
[351971074,1738865435318,-500.0,0.00016572,2]
[351971075,1738865435328,-500.0,0.00016572,2]
[351971076,1738865435339,-588.83,0.00016572,2]
[351971077,1738865435350,-500.0,0.00016572,2]
[351971078,1738865435359,-500.0,0.00016572,2]
[351971079,1738865435369,-500.0,0.00016572,2]
[351971080,1738865435379,-500.0,0.00016572,2]
[351971081,1738865435391,-588.28,0.00016572,2]
[351971082,1738865435401,-500.0,0.00016572,2]
[351971083,1738865435411,-500.0,0.00016572,2]
[351971084,1738865435423,-500.0,0.00016572,2]
[351971085,1738865435432,-500.0,0.00016572,2]
[351971086,1738865435442,-596.16,0.00016572,2]
[351971087,1738865435452,-500.0,0.00016572,2]
[351971088,1738865435461,-500.0,0.00016572,2]
[351971089,1738865435471,-502.69140962,0.00016572,2]
[351971090,1738865435481,-500.0,0.00016572,2]
[351971091,1738865435491,-165.53918589,0.00016572,2]
[351971092,1738865435500,-627.53,0.00016572,2]
[351971093,1738865435510,-500.0,0.00016572,2]
[351971094,1738865435519,-500.0,0.00016572,2]
[351971095,1738865435531,-500.0,0.00016572,2]
[351971096,1738865435541,-500.0,0.00016572,2]
[351971097,1738865435552,-500.0,0.00016572,2]
[351971098,1738865435561,-500.0,0.00016572,2]
[351971099,1738865435571,-500.0,0.00016572,2]
[351971100,1738865435581,-500.0,0.00016572,2]
[351971101,1738865435591,-500.0,0.00016572,2]
[351971102,1738865435600,-500.0,0.00016572,2]
[351971103,1738865435610,-357.7146739,0.00016572,2]
[351971104,1738865435620,-500.0,0.00016572,2]
[351971105,1738865435633,-500.0,0.00016572,2]
[351971106,1738865435643,-500.0,0.00016572,2]
[351971107,1738865435655,-500.0,0.00016572,2]
[351971108,1738865435665,-513.16,0.00016572,2]
[351971109,1738865435675,-500.0,0.00016572,2]
[351971110,1738865435695,-500.0,0.00016572,2]
[351971111,1738865435705,-568.47,0.00016572,2]
[351971112,1738865435716,-500.0,0.00016572,2]
[351971113,1738865435726,-500.0,0.00016572,2]
[351971114,1738865435737,-500.0,0.00016572,2]
[351971115,1738865435748,-500.0,0.00016572,2]
[351971116,1738865435758,-500.0,0.00016572,2]
[351971117,1738865435773,-247.77073186,0.00016573,2]
[351971118,1738865435785,-976.22,0.00016573,2]
[351971119,1738865435795,-1325.13,0.00016573,2]
[351971120,1738865435806,-996.01,0.00016573,2]
[351971121,1738865435816,-1127.9,0.00016573,2]
[351971122,1738865435826,-728.2,0.00016573,2]
[351971123,1738865435837,-1012.84,0.00016573,2]
[351971124,1738865435847,-500.0,0.00016573,2]
[351971125,1738865435857,-1054.05,0.00016573,2]
[351971126,1738865435867,-860.12,0.00016573,2]
[351971127,1738865435877,-1462.25,0.00016573,2]
[351971128,1738865435887,-500.0,0.00016573,2]
[351971129,1738865435897,-1106.5,0.00016573,2]
[351971130,1738865435907,-603.84,0.00016573,2]
[351971131,1738865435917,-850.24,0.00016573,2]
[351971132,1738865435927,-500.0,0.00016573,2]
[351971133,1738865435938,-895.59,0.00016573,2]
[351971134,1738865435947,-500.0,0.00016573,2]
[351971135,1738865435957,-634.26,0.00016573,2]
[351971136,1738865435967,-724.57,0.00016573,2]
[351971137,1738865435977,-622.81,0.00016573,2]
[351971138,1738865435987,-500.0,0.00016573,2]
[351971139,1738865435997,-753.42,0.00016573,2]
[351971140,1738865436006,-500.0,0.00016573,2]
[351971141,1738865436016,-500.0,0.00016574,2]
[351971142,1738865436029,-500.0,0.00016574,2]
[351971143,1738865436040,-500.0,0.00016574,2]
[351971144,1738865436049,-500.0,0.00016574,2]
[351971145,1738865436060,-500.0,0.00016574,2]
[351971146,1738865436069,-500.0,0.00016574,2]
[351971147,1738865436079,-500.0,0.00016574,2]
[351971148,1738865436088,-500.0,0.00016574,2]
[351971149,1738865436097,-500.0,0.00016574,2]
[351971150,1738865436106,-500.0,0.00016574,2]
[351971151,1738865436118,-500.0,0.00016574,2]
[351971152,1738865436127,-500.0,0.00016574,2]
[351971153,1738865436138,-500.0,0.00016574,2]
[351971154,1738865436147,-500.0,0.00016574,2]
[351971155,1738865436157,-500.0,0.00016574,2]
[351971156,1738865436167,-500.0,0.00016574,2]
[351971157,1738865436177,-500.0,0.00016574,2]
[351971158,1738865436186,-500.0,0.00016574,2]
[351971159,1738865436196,-500.0,0.00016574,2]
[351971160,1738865436206,-500.0,0.00016574,2]
[351971161,1738865436215,-500.0,0.00016574,2]
[351971162,1738865436225,-500.0,0.00016574,2]
[351971163,1738865436234,-500.0,0.00016574,2]
[351971164,1738865436243,-500.0,0.00016574,2]
[351971165,1738865436253,-500.0,0.00016574,2]
[351971166,1738865436262,-500.0,0.00016574,2]
[351971167,1738865436273,-500.0,0.00016574,2]
[351971168,1738865436282,-500.0,0.00016574,2]
[351971169,1738865436291,-500.0,0.00016574,2]
[351971170,1738865436300,-500.0,0.00016574,2]
[351971171,1738865436310,-500.0,0.00016574,2]
[351971172,1738865436320,-500.0,0.00016574,2]
[351971173,1738865436330,-500.0,0.00016574,2]
[351971174,1738865436339,-500.0,0.00016574,2]
[351971175,1738865436349,-500.0,0.00016574,2]
[351971176,1738865436359,-500.0,0.00016574,2]
[351971177,1738865436368,-500.0,0.00016574,2]
[351971178,1738865436378,-500.0,0.00016574,2]
[351971179,1738865436389,-500.0,0.00016574,2]
[351971180,1738865436400,-500.0,0.00016574,2]
[351971181,1738865436410,-500.0,0.00016574,2]
[351971182,1738865436420,-500.0,0.00016574,2]
[351971183,1738865436430,-378.95310331,0.00016574,2]
[351971184,1738865436440,-500.0,0.00016574,2]
[351971185,1738865436450,-303.61415633,0.00016574,2]
[351971186,1738865436460,-500.0,0.00016574,2]
[351971187,1738865436471,-500.0,0.00016574,2]
[351971188,1738865436481,-500.0,0.00016574,2]
[351971189,1738865436491,-500.0,0.00016574,2]
[351971190,1738865436500,-500.0,0.00016574,2]
[351971191,1738865436510,-500.0,0.00016574,2]
[351971192,1738865436519,-500.0,0.00016574,2]
[351971193,1738865436532,-500.0,0.00016574,2]
[351971194,1738865436543,-500.0,0.00016574,2]
[351971195,1738865436552,-500.0,0.00016574,2]
[351971196,1738865436562,-500.0,0.00016574,2]
[351971197,1738865436571,-500.0,0.00016574,2]
[351971198,1738865436581,-500.0,0.00016574,2]
[351971199,1738865436591,-623.8,0.00016574,2]
[351971200,1738865436601,-500.0,0.00016574,2]
[351971201,1738865436611,-500.0,0.00016574,2]
[351971202,1738865436621,-500.0,0.00016574,2]
[351971203,1738865436631,-500.0,0.00016574,2]
[351971204,1738865436641,-500.0,0.00016574,2]
[351971205,1738865436651,-500.0,0.00016574,2]
[351971206,1738865436661,-580.56,0.00016574,2]
[351971207,1738865436671,-500.0,0.00016574,2]
[351971208,1738865436680,-608.59,0.00016574,2]
[351971209,1738865436689,-500.0,0.00016574,2]
[351971210,1738865436699,-500.0,0.00016574,2]
[351971211,1738865436709,-522.51,0.00016574,2]
[351971212,1738865436719,-500.0,0.00016574,2]
[351971213,1738865436729,-1427.16,0.00016574,2]
[351971214,1738865436738,-500.0,0.00016574,2]
[351971215,1738865436748,-434.85644752,0.00016574,2]
[351971216,1738865436758,-500.0,0.00016574,2]
[351971217,1738865436768,-500.0,0.00016574,2]
[351971218,1738865436780,-500.0,0.00016574,2]
[351971219,1738865436790,-500.0,0.00016574,2]
[351971220,1738865436800,-626.69,0.00016574,2]
[351971221,1738865436810,-500.0,0.00016574,2]
[351971222,1738865436820,-500.0,0.00016574,2]
[351971223,1738865436829,-500.0,0.00016574,2]
[351971224,1738865436838,-500.0,0.00016574,2]
[351971225,1738865436847,-500.0,0.00016574,2]
[351971226,1738865436856,-293.61278077,0.00016574,2]
[351971227,1738865436865,-500.0,0.00016574,2]
[351971228,1738865436875,-500.0,0.00016574,2]
[351971229,1738865436885,-500.0,0.00016574,2]
[351971230,1738865436895,-500.0,0.00016574,2]
[351971231,1738865436905,-500.0,0.00016574,2]
[351971232,1738865436915,-500.0,0.00016574,2]
[351971233,1738865436924,-500.0,0.00016574,2]
[351971234,1738865436934,-500.0,0.00016574,2]
[351971235,1738865436944,-500.0,0.00016574,2]
[351971236,1738865436954,-500.0,0.00016574,2]
[351971237,1738865436964,-500.0,0.00016574,2]
[351971238,1738865436973,-500.0,0.00016574,2]
[351971239,1738865436983,-500.0,0.00016574,2]
[351971240,1738865436992,-500.0,0.00016574,2]
[351971241,1738865437002,-500.0,0.00016574,2]
[351971242,1738865437011,-500.0,0.00016574,2]
[351971243,1738865437023,-500.0,0.00016574,2]
[351971244,1738865437032,-500.0,0.00016574,2]
[351971245,1738865437042,-500.0,0.00016574,2]
[351971246,1738865437051,-500.0,0.00016574,2]
[351971247,1738865437061,-500.0,0.00016574,2]
[351971248,1738865437070,-500.0,0.00016574,2]
[351971249,1738865437080,-500.0,0.00016574,2]
[351971250,1738865437089,-500.0,0.00016574,2]
[351971251,1738865437098,-506.95,0.00016574,2]
[351971252,1738865437108,-520.23598429,0.00016574,2]
[351971253,1738865437118,-520.74321088,0.00016574,2]
[351971254,1738865437127,-527.23,0.00016574,2]
[351971255,1738865437137,-500.0,0.00016574,2]
[351971256,1738865437147,-500.0,0.00016574,2]
[351971257,1738865437156,-539.23942346,0.00016574,2]
[351971258,1738865437166,-500.0,0.00016574,2]
[351971259,1738865437175,-500.0,0.00016574,2]
[351971260,1738865437185,-500.0,0.00016574,2]
[351971261,1738865437195,-500.0,0.00016574,2]
[351971262,1738865437204,-500.0,0.00016574,2]
[351971263,1738865437214,-500.0,0.00016574,2]
[351971264,1738865437224,-703.7,0.00016574,2]
[351971265,1738865437234,-500.0,0.00016574,2]
[351971266,1738865437245,-500.0,0.00016574,2]
[351971267,1738865437254,-500.0,0.00016574,2]
[351971268,1738865437264,-500.0,0.00016574,2]
[351971269,1738865437275,-500.0,0.00016574,2]
[351971270,1738865437285,-500.0,0.00016574,2]
[351971271,1738865437295,-500.0,0.00016574,2]
[351971272,1738865437305,-500.0,0.00016574,2]
[351971273,1738865437315,-500.0,0.00016574,2]
[351971274,1738865437325,-500.0,0.00016574,2]
[351971275,1738865437335,-685.4,0.00016574,2]
[351971276,1738865437344,-500.0,0.00016574,2]
[351971277,1738865437354,-612.76,0.00016574,2]
[351971278,1738865437364,-500.0,0.00016574,2]
[351971279,1738865437373,-500.0,0.00016574,2]
[351971280,1738865437385,-500.0,0.00016574,2]
[351971281,1738865437398,-500.0,0.00016574,2]
[351971282,1738865437408,-500.0,0.00016574,2]
[351971283,1738865437417,-500.0,0.00016574,2]
[351971284,1738865437429,-500.0,0.00016574,2]
[351971285,1738865437439,-500.0,0.00016574,2]
[351971286,1738865437450,-500.0,0.00016574,2]
[351971287,1738865437460,-500.0,0.00016574,2]
[351971288,1738865437471,-500.0,0.00016574,2]
[351971289,1738865437481,-557.43,0.00016574,2]
[351971290,1738865437491,-622.44,0.00016574,2]
[351971291,1738865437501,-500.0,0.00016574,2]
[351971292,1738865437511,-500.0,0.00016574,2]
[351971293,1738865437525,-552.42289723,0.00016574,2]
[351971294,1738865437535,-500.0,0.00016574,2]
[351971295,1738865437546,-555.09,0.00016574,2]
[351971296,1738865437556,-500.0,0.00016574,2]
[351971297,1738865437568,-500.0,0.00016574,2]
[351971298,1738865437577,-629.91,0.00016574,2]
[351971299,1738865437587,-189.17225587,0.00016574,2]
[351971300,1738865437597,-534.94322166,0.00016574,2]
[351971301,1738865437607,-577.96,0.00016574,2]
[351971302,1738865437618,-500.0,0.00016574,2]
[351971303,1738865437628,-500.0,0.00016574,2]
[351971304,1738865437638,-500.0,0.00016574,2]
[351971305,1738865437649,-500.0,0.00016574,2]
[351971306,1738865437659,-500.0,0.00016574,2]
[351971307,1738865437669,-500.0,0.00016574,2]
[351971308,1738865437679,-500.0,0.00016574,2]
[351971310,1738865437841,-626.6,0.00016574,2]
[351971312,1738865437873,-500.0,0.00016574,2]
[351971313,1738865437884,-500.0,0.00016574,2]
[351971315,1738865437894,-805.6,0.00016574,2]
[351971317,1738865437904,-500.0,0.00016574,2]
[351971318,1738865437914,-500.0,0.00016574,2]
[351971319,1738865437923,-500.0,0.00016574,2]
[351971320,1738865437934,-500.0,0.00016574,2]
[351971321,1738865437943,-1069.19,0.00016574,2]
[351971322,1738865437953,-500.0,0.00016574,2]
[351971323,1738865437963,-500.0,0.00016574,2]
[351971324,1738865437974,-500.0,0.00016574,2]
[351971325,1738865437983,-508.54,0.00016574,2]
[351971326,1738865437993,-500.0,0.00016574,2]
[351971327,1738865438003,-500.0,0.00016574,2]
[351971329,1738865438013,-500.0,0.00016574,2]
[351971330,1738865438025,-500.0,0.00016574,2]
[351971331,1738865438035,-583.91,0.00016574,2]
[351971332,1738865438044,-983.42,0.00016574,2]
[351971333,1738865438055,-500.0,0.00016574,2]
[351971334,1738865438064,-500.0,0.00016574,2]
[351971335,1738865438074,-500.0,0.00016574,2]
[351971336,1738865438084,-828.03,0.00016574,2]
[351971337,1738865438094,-500.0,0.00016574,2]
[351971338,1738865438104,-500.0,0.00016574,2]
[351971339,1738865438113,-605.38,0.00016574,2]
[351971340,1738865438123,-500.0,0.00016574,2]
[351971341,1738865438132,-500.0,0.00016574,2]
[351971342,1738865438142,-500.0,0.00016574,2]
[351971343,1738865438152,-1761.67,0.00016574,2]
[351971344,1738865438161,-500.0,0.00016574,2]
[351971345,1738865438172,-500.0,0.00016574,2]
[351971346,1738865438183,-500.0,0.00016574,2]
[351971347,1738865438193,-500.0,0.00016574,2]
[351971348,1738865438203,-500.0,0.00016574,2]
[351971349,1738865438213,-500.0,0.00016574,2]
[351971350,1738865438223,-704.73,0.00016574,2]
[351971351,1738865438234,-500.0,0.00016574,2]
[351971352,1738865438244,-500.0,0.00016574,2]
[351971353,1738865438254,-500.0,0.00016574,2]
[351971354,1738865438265,-500.0,0.00016574,2]
[351971355,1738865438278,-500.0,0.00016574,2]
[351971356,1738865438287,-590.4095567,0.00016574,2]
[351971357,1738865438298,-500.0,0.00016574,2]
[351971358,1738865438308,-1822.29,0.00016574,2]
[351971359,1738865438318,-500.0,0.00016574,2]
[351971360,1738865438328,-1421.21,0.00016574,2]
[351971361,1738865438339,-500.0,0.00016574,2]
[351971362,1738865438350,-500.0,0.00016574,2]
[351971363,1738865438360,-893.08,0.00016574,2]
[351971365,1738865438370,-500.0,0.00016574,2]
[351971366,1738865438382,-500.0,0.00016574,2]
[351971367,1738865438393,-533.82,0.00016574,2]
[351971368,1738865438403,-1034.41,0.00016574,2]
[351971369,1738865438412,-528.7,0.00016574,2]
[351971370,1738865438423,-500.0,0.00016574,2]
[351971372,1738865438432,-500.0,0.00016574,2]
[351971374,1738865438441,-500.0,0.00016574,2]
[351971376,1738865438451,-500.0,0.00016574,2]
[351971378,1738865438462,-501.16,0.00016574,2]
[351971380,1738865438472,-681.75,0.00016574,2]
[351971382,1738865438482,-500.0,0.00016574,2]
[351971384,1738865438492,-1549.0,0.00016574,2]
[351971386,1738865438501,-500.0,0.00016574,2]
[351971388,1738865438511,-500.0,0.00016574,2]
[351971390,1738865438523,-500.0,0.00016574,2]
[351971392,1738865438532,-1671.92,0.00016574,2]
[351971393,1738865438543,-1043.85,0.00016574,2]
[351971396,1738865438553,-225.41957089,0.00016574,2]
[351971397,1738865438562,-500.0,0.00016574,2]
[351971399,1738865438572,-566.37,0.00016574,2]
[351971402,1738865438582,-1031.06,0.00016574,2]
[351971403,1738865438592,-500.0,0.00016574,2]
[351971406,1738865438602,-991.52,0.00016574,2]
[351971408,1738865438612,-500.0,0.00016574,2]
[351971409,1738865438622,-1136.23,0.00016574,2]
[351971411,1738865438631,-279.41940043,0.00016574,2]
[351971413,1738865438641,-500.0,0.00016574,2]
[351971416,1738865438651,-150.0,0.00016586,2]
[351971418,1738865438661,-21779.73845214,0.0001663,2]
[351971420,1738865438671,-2763.72753964,0.00016632,2]
[351971422,1738865438681,-799.29,0.00016647,2]
[351971424,1738865438692,-861.03,0.00016647,2]
[351971426,1738865438702,-500.0,0.00016647,2]
[351971428,1738865438712,-1094.82,0.00016647,2]
[351971430,1738865438722,-500.0,0.00016647,2]
[351971432,1738865438733,-1401.98,0.00016647,2]
[351971434,1738865438742,-1168.74,0.00016647,2]
[351971436,1738865438751,-919.68,0.00016647,2]
[351971438,1738865438761,-1164.05,0.00016647,2]
[351971440,1738865438773,-593.68,0.00016647,2]
[351971442,1738865438783,-2152.47,0.00016647,2]
[351971444,1738865438793,-500.0,0.00016647,2]
[351971446,1738865438803,-2411.81,0.00016647,2]
[351971448,1738865438812,-694.81,0.00016647,2]
[351971450,1738865438822,-1091.06,0.00016647,2]
[351971452,1738865438831,-1171.03,0.00016647,2]
[351971454,1738865438841,-779.96,0.00016647,2]
[351971456,1738865438851,-923.83,0.00016647,2]
[351971458,1738865438862,-500.0,0.00016647,2]
[351971460,1738865438871,-816.87,0.00016647,2]
[351971462,1738865438881,-500.0,0.00016647,2]
[351971464,1738865438891,-659.46,0.00016647,2]
[351971466,1738865438901,-1000.0,0.00016647,2]
[351971468,1738865438910,-535.0,0.00016647,2]
[351971470,1738865438919,-500.0,0.00016647,2]
[351971472,1738865438929,-649.85,0.00016647,2]
[351971474,1738865438938,-500.0,0.00016648,2]
[351971476,1738865438947,-500.0,0.00016648,2]
[351971478,1738865438957,-579.53,0.00016648,2]
[351971480,1738865438966,-500.0,0.00016648,2]
[351971482,1738865438976,-549.11,0.00016648,2]
[351971484,1738865438986,-500.0,0.00016648,2]
[351971486,1738865438995,-769.66,0.00016648,2]
[351971488,1738865439005,-500.0,0.00016648,2]
[351971490,1738865439015,-500.0,0.00016648,2]
[351971492,1738865439027,-500.0,0.00016648,2]
[351971494,1738865439037,-743.13,0.00016648,2]
[351971496,1738865439047,-500.0,0.00016648,2]
[351971498,1738865439056,-500.0,0.00016648,2]
[351971500,1738865439066,-579.13,0.00016648,2]
[351971502,1738865439077,-759.43,0.00016648,2]
[351971504,1738865439086,-500.0,0.00016648,2]
[351971506,1738865439096,-500.0,0.00016648,2]
[351971508,1738865439107,-500.0,0.00016648,2]
[351971510,1738865439118,-500.0,0.00016648,2]
[351971512,1738865439127,-568.34,0.00016648,2]
[351971514,1738865439137,-500.0,0.00016648,2]
[351971516,1738865439146,-635.05,0.00016648,2]